bitfinex/quotes_SOLUSD_20220208
["timestamp","ask_amount","ask_price","bid_price","bid_amount"]
[1644339464283,24.56,111.26,111.16,38.41475883]
[1644339464483,30.56,111.26,111.16,38.41475883]
[1644339464682,47.75815298,111.25,111.16,40.62080963]
[1644339464887,47.75815298,111.25,111.16,38.41475883]
[1644339465083,42.87653077,111.23,111.16,38.41475883]
[1644339465483,6.0,111.23,111.16,38.41475883]
[1644339466085,0.25,111.23,111.16,38.41475883]
[1644339466284,30.56,111.26,111.16,38.41475883]
[1644339466285,30.81,111.26,111.16,38.41475883]
[1644339466484,39.39327922,111.25,111.16,38.41475883]
[1644339466688,13.4925,111.23,111.16,51.90615883]
[1644339466885,4.496,111.22,111.16,51.90615883]
[1644339467090,6.0,111.22,111.16,51.90615883]
[1644339467689,10.496,111.24,111.16,52.15615883]
[1644339467894,24.56,111.26,111.17,1.9560508]
[1644339468087,4.495,111.25,111.18,13.4874]
[1644339468312,4.495,111.25,111.18,13.7374]
[1644339468712,4.745,111.25,111.19,38.16636905]
[1644339468914,0.25,111.25,111.19,38.16636905]
[1644339469314,78.66369954,111.26,111.19,38.16636905]
[1644339469514,4.495,111.25,111.19,38.16636905]
[1644339469713,10.745,111.25,111.19,38.16636905]
[1644339469916,6.25,111.25,111.19,38.16636905]
[1644339470419,0.25,111.25,111.19,38.16636905]
[1644339470617,6.0,111.25,111.19,38.41636905]
[1644339470817,6.25,111.25,111.19,38.41636905]
[1644339471015,0.25,111.25,111.19,38.41636905]
[1644339471816,0.25,111.25,111.19,51.90296905]
[1644339472016,24.2321,111.28,111.19,51.90296905]
[1644339472218,19.7371,111.28,111.19,51.90296905]
[1644339473318,6.25,111.28,111.2,1.9560508]
[1644339473518,6.25,111.28,111.2,15.4407508]
[1644339473717,0.25,111.28,111.2,15.4407508]
[1644339473919,6.25,111.28,111.2,13.4847]
[1644339474119,0.25,111.29,111.2,13.4847]
[1644339474318,4.494,111.29,111.21,45.23120715]
[1644339474520,6.0,111.3,111.21,45.23120715]
[1644339474721,42.52952601,111.31,111.22,15.4391508]
[1644339475019,51.6535,111.32,111.23,43.84595387]
[1644339475220,6.0,111.31,111.23,43.84595387]
[1644339475424,4.493,111.31,111.23,43.84595387]
[1644339475623,6.0,111.31,111.23,43.84595387]
[1644339476023,47.48132426,111.31,111.23,43.84595387]
[1644339476723,23.9757,111.31,111.23,43.84595387]
[1644339477127,24.2257,111.31,111.23,43.84595387]
[1644339477725,72.37234636,111.31,111.23,43.84595387]
[1644339478123,58.88964636,111.31,111.23,43.84595387]
[1644339478529,10.743,111.31,111.23,43.84595387]
[1644339478725,59.1349,111.32,111.23,44.09595387]
[1644339478926,22.7637,111.32,111.23,59.52782776]
[1644339479129,17.9706,111.35,111.23,59.52782776]
[1644339479327,53.82287744,111.37,111.23,67.68982776]
[1644339479568,91.02898429,111.37,111.23,78.41982776]
[1644339479724,91.02898429,111.37,111.23,84.41982776]
[1644339479925,91.02898429,111.37,111.23,137.80982776]
[1644339480128,97.02898429,111.37,111.23,137.80982776]
[1644339480328,97.27898429,111.37,111.23,137.80982776]
[1644339480533,46.8453,111.37,111.23,137.80982776]
[1644339480829,4.492,111.36,111.23,146.70783496]
[1644339481027,13.4741,111.39,111.23,146.70783496]
[1644339481226,2.48557744,111.4,111.24,0.44]
[1644339481427,40.40309798,111.39,111.28,13.4709]
[1644339481727,35.91209798,111.39,111.29,38.93244068]
[1644339482027,4.49,111.4,111.29,49.66244068]
[1644339482227,24.0576,111.41,111.3,1.96157544]
[1644339482428,4.49,111.43,111.32,13.4667]
[1644339482627,22.93802108,111.44,111.33,10.73]
[1644339482828,4.488,111.43,111.34,38.64270209]
[1644339483032,22.93802108,111.44,111.34,38.64270209]
[1644339483228,4.488,111.43,111.34,40.85427753]
[1644339483428,0.03302108,111.44,111.34,40.85427753]
[1644339483629,0.03302108,111.46,111.35,15.42507544]
[1644339483829,0.03302108,111.44,111.35,15.67507544]
[1644339484029,0.03302108,111.46,111.36,12.69157544]
[1644339484232,0.03302108,111.47,111.37,43.33104296]
[1644339484433,41.06306695,111.46,111.37,43.33104296]
[1644339484630,4.487,111.45,111.37,43.33104296]
[1644339484831,41.06306695,111.46,111.37,43.58104296]
[1644339485029,0.03302108,111.47,111.37,43.33104296]
[1644339485230,4.487,111.47,111.37,43.58104296]
[1644339485433,4.52002108,111.47,111.37,43.58104296]
[1644339485634,0.03302108,111.47,111.37,43.58104296]
[1644339485831,0.03302108,111.49,111.38,1.96157544]
[1644339486031,0.03302108,111.47,111.39,48.24296745]
[1644339486232,0.03302108,111.49,111.39,59.22296745]
[1644339486439,0.03302108,111.5,111.4,1.96157544]
[1644339486632,0.03302108,111.52,111.41,10.73]
[1644339486837,0.03302108,111.52,111.41,10.98]
[1644339487057,1.27522979,111.54,111.42,1.96157544]
[1644339487260,0.03302108,111.52,111.43,57.08857374]
[1644339487465,4.485,111.57,111.44,116.4522]
[1644339487661,2.48557744,111.59,111.45,10.73]
[1644339487860,48.89207744,111.6,111.45,22.02958264]
[1644339488065,50.8895,111.6,111.45,30.37958264]
[1644339488268,50.8895,111.6,111.46,11.29958264]
[1644339488463,23.7419,111.6,111.47,40.56827947]
[1644339488663,23.7419,111.6,111.49,13.4466]
[1644339488861,28.2239,111.6,111.5,10.73]
[1644339489064,28.2239,111.6,111.5,16.73]
[1644339489262,4.732,111.6,111.5,16.98]
[1644339489464,0.25,111.6,111.51,43.52512858]
[1644339489664,0.25,111.6,111.51,51.54012858]
[1644339489865,0.25,111.6,111.51,53.75170402]
[1644339490063,0.25,111.6,111.51,51.54012858]
[1644339490264,9.2830657,111.61,111.51,51.54012858]
[1644339490464,48.13063652,111.6,111.51,51.54012858]
[1644339490665,49.64963652,111.6,111.51,51.54012858]
[1644339490867,49.89963652,111.6,111.51,8.015]
[1644339491766,4.482,111.59,111.52,37.0295551]
[1644339491966,42.53323631,111.58,111.52,37.0295551]
[1644339492166,48.53323631,111.58,111.52,37.0295551]
[1644339492366,48.78323631,111.58,111.52,37.0295551]
[1644339493068,48.78323631,111.58,111.51,8.015]
[1644339493267,8.015,111.5,111.38,44.8484]
[1644339493476,4.486,111.49,111.39,10.73]
[1644339493669,10.486,111.49,111.38,10.73]
[1644339493867,4.736,111.49,111.38,10.73]
[1644339494069,0.25,111.49,111.39,37.19229775]
[1644339494468,0.25,111.49,111.4,10.73]
[1644339495068,14.265,111.5,111.4,10.73]
[1644339495269,4.486,111.49,111.4,10.73]
[1644339495670,10.736,111.49,111.41,42.54197042]
[1644339495869,6.25,111.49,111.41,42.54197042]
[1644339496073,8.015,111.5,111.41,96.18197042]
[1644339496270,8.015,111.5,111.42,10.73]
[1644339496675,8.015,111.5,111.42,10.98]
[1644339497073,47.46250571,111.5,111.42,10.73]
[1644339497271,4.485,111.49,111.37,13.85376435]
[1644339497472,4.485,111.49,111.35,10.73]
[1644339497671,10.735,111.49,111.35,10.73]
[1644339497877,19.535,111.49,111.35,10.73]
[1644339498075,2.10775549,111.48,111.36,36.3579756]
[1644339498273,41.6029383,111.47,111.36,36.3579756]
[1644339498676,47.8529383,111.47,111.36,36.3579756]
[1644339499577,4.737,111.47,111.36,36.3579756]
[1644339499776,8.015,111.5,111.37,1.95756386]
[1644339499976,8.015,111.5,111.37,12.68756386]
[1644339500476,8.015,111.5,111.37,26.79132821]
[1644339500675,36.1983335,111.49,111.38,47.45592225]
[1644339500878,4.486,111.48,111.38,49.41348611]
[1644339501075,36.08157784,111.47,111.38,47.70592225]
[1644339501278,4.487,111.46,111.38,47.70592225]
[1644339501479,6.0,111.47,111.38,47.70592225]
[1644339501675,8.015,111.5,111.38,103.05348611]
[1644339501876,8.015,111.5,111.39,10.73]
[1644339502075,8.015,111.5,111.39,83.5772]
[1644339502277,8.015,111.5,111.4,1.95756386]
[1644339502481,8.015,111.5,111.41,38.96942725]
[1644339502680,8.015,111.5,111.41,49.94942725]
[1644339502882,8.015,111.5,111.42,1.95756386]
[1644339503079,1.13798525,111.5,111.42,1.95756386]
[1644339503279,1.13798525,111.5,111.43,64.12]
[1644339503582,1.13798525,111.5,111.44,47.16049521]
[1644339503783,1.13798525,111.5,111.44,60.09805907]
[1644339503981,1.13798525,111.5,111.45,1.95756386]
[1644339504180,0.29074064,111.5,111.46,39.28880144]
[1644339504582,0.29074064,111.5,111.47,1.95756386]
[1644339504583,0.00074064,111.5,111.47,1.95756386]
[1644339504782,4.83507915,111.58,111.48,90.73]
[1644339504982,23.5855,111.62,111.49,53.39]
[1644339505184,6.96857744,111.65,111.51,53.39]
[1644339505382,4.481,111.66,111.52,10.73]
[1644339505584,35.23834434,111.65,111.53,43.72922309]
[1644339505881,41.91948499,111.63,111.53,43.72922309]
[1644339506082,46.67701742,111.61,111.53,43.72922309]
[1644339506288,4.481,111.6,111.5,10.73]
[1644339506483,10.481,111.6,111.5,10.98]
[1644339507285,36.52422306,111.59,111.49,43.37743945]
[1644339507483,38.94111367,111.57,111.49,43.37743945]
[1644339507684,45.19111367,111.57,111.49,43.62743945]
[1644339507885,45.19111367,111.57,111.49,43.37743945]
[1644339508788,45.19111367,111.57,111.47,10.73]
[1644339508984,4.483,111.56,111.45,10.73]
[1644339509186,4.733,111.56,111.45,10.98]
[1644339509385,10.733,111.56,111.45,10.73]
[1644339509786,40.09622269,111.55,111.45,10.73]
[1644339509987,4.484,111.54,111.41,12.68753277]
[1644339510187,10.734,111.54,111.41,1.95753277]
[1644339510586,6.25,111.54,111.41,1.95753277]
[1644339510786,46.89331571,111.53,111.42,39.91443144]
[1644339510985,51.37831571,111.53,111.42,39.91443144]
[1644339511186,57.62831571,111.53,111.42,40.16443144]
[1644339511395,53.14331571,111.53,111.42,40.16443144]
[1644339511590,4.485,111.52,111.42,40.16443144]
[1644339511789,38.65843972,111.51,111.43,1.95753277]
[1644339511989,44.65843972,111.51,111.44,39.18505824]
[1644339512189,44.90843972,111.51,111.44,39.43505824]
[1644339512990,44.90843972,111.51,111.44,39.18505824]
[1644339513189,44.90843972,111.51,111.41,1.95753277]
[1644339513408,4.485,111.5,111.36,8.80008088]
[1644339513608,0.03212117,111.49,111.37,12.68753277]
[1644339513807,4.487,111.48,111.37,12.68753277]
[1644339514012,4.487,111.48,111.37,18.68753277]
[1644339514208,55.09083725,111.48,111.38,43.79234605]
[1644339514408,0.25,111.48,111.38,103.18234605]
[1644339514611,0.03212117,111.49,111.39,12.68753277]
[1644339514908,0.03212117,111.5,111.4,53.39]
[1644339515108,0.28212117,111.51,111.41,10.73]
[1644339515309,0.03212117,111.5,111.41,12.93753277]
[1644339515508,0.28212117,111.51,111.42,43.76723876]
[1644339515708,0.03212117,111.51,111.42,54.74723876]
[1644339515910,0.03212117,111.51,111.43,1.95753277]
[1644339516108,0.03212117,111.54,111.44,64.12]
[1644339516308,0.03212117,111.54,111.44,10.98]
[1644339516613,0.03212117,111.54,111.44,12.93753277]
[1644339516908,36.48635615,111.54,111.45,43.79234605]
[1644339517208,36.48635615,111.54,111.45,44.04234605]
[1644339518009,4.484,111.53,111.45,0.25]
[1644339518210,4.734,111.53,111.45,0.25]
[1644339518410,10.734,111.53,111.44,10.98]
[1644339519014,35.30408369,111.52,111.44,0.25]
[1644339519214,4.485,111.51,111.43,48.33971479]
[1644339519411,34.74189047,111.5,111.43,48.33971479]
[1644339519911,0.25,111.5,111.43,48.33971479]
[1644339520312,0.03212117,111.53,111.43,48.33971479]
[1644339520513,0.03212117,111.52,111.43,61.02724756]
[1644339520713,0.03212117,111.53,111.43,61.02724756]
[1644339520912,41.2695945,111.53,111.43,67.02724756]
[1644339521115,47.30171567,111.53,111.43,67.02724756]
[1644339521313,47.55171567,111.53,111.43,67.02724756]
[1644339521816,47.55171567,111.53,111.43,65.06971479]
[1644339522214,47.30171567,111.53,111.43,59.06971479]
[1644339522414,0.03212117,111.53,111.43,114.41724756]
[1644339522613,0.03212117,111.54,111.43,134.27101191]
[1644339522813,0.03212117,111.53,111.43,134.27101191]
[1644339523112,0.03212117,111.54,111.43,94.33371191]
[1644339523312,0.03212117,111.53,111.43,94.33371191]
[1644339523512,44.02856055,111.54,111.43,80.47994756]
[1644339523713,0.03212117,111.53,111.43,80.47994756]
[1644339523911,39.79356055,111.54,111.43,133.86994756]
[1644339524111,0.03212117,111.53,111.43,133.86994756]
[1644339524312,39.79356055,111.54,111.43,133.86994756]
[1644339524515,0.03212117,111.53,111.43,133.86994756]
[1644339525116,39.79356055,111.54,111.43,133.86994756]
[1644339525314,0.03212117,111.53,111.43,80.47994756]
[1644339525514,44.24543938,111.54,111.43,59.06971479]
[1644339525515,44.27756055,111.54,111.43,59.06971479]
[1644339525715,0.03212117,111.53,111.43,59.06971479]
[1644339525920,41.47378288,111.51,111.43,59.06971479]
[1644339526116,41.47378288,111.51,111.43,58.81971479]
[1644339526318,41.72378288,111.51,111.43,58.81971479]
[1644339527318,41.72378288,111.51,111.43,10.73]
[1644339527524,4.485,111.5,111.41,1.96231407]
[1644339527721,4.735,111.5,111.39,12.69231407]
[1644339527919,6.28212117,111.5,111.39,12.69231407]
[1644339528322,43.6413979,111.49,111.4,47.99532427]
[1644339528718,43.8913979,111.49,111.4,47.99532427]
[1644339528918,0.03212117,111.5,111.4,109.34763834]
[1644339529118,0.03212117,111.51,111.4,109.34763834]
[1644339529318,0.28212117,111.51,111.41,64.12]
[1644339529518,0.28212117,111.51,111.42,13.4541]
[1644339529722,0.28212117,111.51,111.43,10.73]
[1644339529921,0.28212117,111.51,111.44,37.60672777]
[1644339530119,0.25,111.51,111.44,37.60672777]
[1644339530319,84.5173887,111.53,111.44,39.81904184]
[1644339530519,84.48526753,111.53,111.44,39.81904184]
[1644339530718,36.62486753,111.53,111.44,39.81904184]
[1644339531331,0.25,111.53,111.44,93.20904184]
[1644339531521,0.03212117,111.54,111.45,1.96231407]
[1644339531718,0.03212117,111.54,111.45,2.21231407]
[1644339532323,37.98223493,111.54,111.46,38.38349924]
[1644339532520,37.95011376,111.54,111.46,38.38349924]
[1644339532720,44.20011376,111.54,111.46,38.63349924]
[1644339532925,43.95011376,111.54,111.46,38.63349924]
[1644339533323,37.95011376,111.54,111.46,38.63349924]
[1644339533624,37.95011376,111.54,111.43,10.73]
[1644339533824,42.43411376,111.54,111.43,10.73]
[1644339534024,50.9196912,111.54,111.43,16.73]
[1644339534223,51.1696912,111.54,111.43,10.73]
[1644339534626,51.1696912,111.54,111.44,35.5145273]
[1644339534829,64.6258912,111.54,111.44,35.5145273]
[1644339535227,64.6258912,111.54,111.44,35.7645273]
[1644339535528,41.84485874,111.52,111.44,35.7645273]
[1644339535729,46.57985874,111.52,111.44,35.7645273]
[1644339536827,42.09485874,111.52,111.44,35.7645273]
[1644339537227,54.42985874,111.52,111.4,10.76239495]
[1644339537432,4.485,111.51,111.38,10.73]
[1644339537629,0.03212117,111.5,111.38,6.0]
[1644339537929,101.44,111.44,111.31,4.64472251]
[1644339538127,2.48557744,111.42,111.34,34.49794415]
[1644339538328,2.73557744,111.42,111.25,53.39]
[1644339538531,4.489,111.41,111.25,66.8646]
[1644339538728,4.739,111.41,111.26,10.73]
[1644339538928,10.739,111.41,111.26,10.73]
[1644339539130,22.4714318,111.41,111.26,10.73]
[1644339539329,37.53278097,111.41,111.27,44.54819355]
[1644339539529,25.80034917,111.41,111.27,44.54819355]
[1644339539729,13.4726,111.4,111.28,13.4724]
[1644339539937,4.49,111.39,111.29,43.72306958]
[1644339540132,10.49,111.39,111.29,43.72306958]
[1644339540330,10.74,111.39,111.29,43.72306958]
[1644339540534,6.25,111.39,111.29,43.72306958]
[1644339540730,6.0,111.39,111.29,43.72306958]
[1644339540932,10.49,111.41,111.29,43.72306958]
[1644339541135,10.49,111.41,111.29,57.19446958]
[1644339541136,23.9615,111.41,111.29,57.19446958]
[1644339541332,23.9615,111.41,111.29,57.44446958]
[1644339541833,23.9615,111.41,111.29,57.19446958]
[1644339542031,24.2115,111.41,111.29,57.19446958]
[1644339542434,19.7215,111.41,111.29,57.19446958]
[1644339543232,19.7215,111.41,111.29,57.44446958]
[1644339543633,4.49,111.4,111.29,57.44446958]
[1644339543834,18.93993042,111.4,111.29,43.97306958]
[1644339544034,24.93993042,111.4,111.29,43.72306958]
[1644339544234,43.58442857,111.4,111.29,43.72306958]
[1644339544434,43.58442857,111.4,111.29,43.97306958]
[1644339544636,43.58442857,111.4,111.29,43.72306958]
[1644339545235,11.68060284,111.39,111.29,43.72306958]
[1644339545436,4.49,111.38,111.29,43.72306958]
[1644339545637,3.42414197,111.37,111.24,0.024]
[1644339545841,4.492,111.36,111.24,0.024]
[1644339546041,15.222,111.36,111.21,0.024]
[1644339546240,24.78525549,111.35,111.19,0.024]
[1644339546439,10.73,111.34,111.17,0.024]
[1644339546639,13.4838,111.31,111.18,13.4844]
[1644339546838,13.4838,111.31,111.19,40.62833309]
[1644339547058,13.4838,111.31,111.2,0.024]
[1644339547059,6.25,111.31,111.2,0.024]
[1644339547839,11.41847997,111.3,111.2,13.5061]
[1644339548039,19.7335,111.31,111.21,0.024]
[1644339548239,6.0,111.3,111.21,0.024]
[1644339548439,6.25,111.31,111.21,0.024]
[1644339548841,13.7334,111.31,111.21,13.5065]
[1644339549041,19.7334,111.31,111.22,38.16770584]
[1644339549239,24.2264,111.31,111.22,38.44170584]
[1644339549539,19.7334,111.31,111.22,38.19170584]
[1644339549739,4.493,111.3,111.22,38.19170584]
[1644339549948,25.9406,111.3,111.22,38.16770584]
[1644339550143,32.1906,111.3,111.22,38.16770584]
[1644339550339,32.1906,111.3,111.19,0.024]
[1644339550539,32.1906,111.3,111.21,0.024]
[1644339550742,32.1906,111.3,111.19,0.024]
[1644339550940,32.1906,111.3,111.17,0.024]
[1644339551139,32.1906,111.3,111.17,13.4879]
[1644339551341,27.6976,111.3,111.18,0.024]
[1644339551539,27.6976,111.3,111.18,38.70084918]
[1644339551941,13.4892,111.27,111.18,38.70084918]
[1644339552141,19.4892,111.27,111.18,38.70084918]
[1644339552343,19.7392,111.27,111.18,38.70084918]
[1644339553244,6.0,111.27,111.18,38.95084918]
[1644339553645,19.487,111.29,111.18,38.95084918]
[1644339554844,4.494,111.28,111.18,52.43784918]
[1644339555045,6.0,111.28,111.18,52.43784918]
[1644339555443,6.25,111.28,111.18,52.43784918]
[1644339555854,0.25,111.28,111.18,52.43784918]
[1644339556149,21.90922311,111.28,111.18,52.43784918]
[1644339556348,4.495,111.27,111.18,38.95084918]
[1644339556548,10.495,111.27,111.18,38.95084918]
[1644339556750,10.745,111.27,111.18,38.95084918]
[1644339556948,6.25,111.27,111.18,38.95084918]
[1644339557447,12.9328217,111.26,111.18,38.95084918]
[1644339557647,6.0,111.26,111.18,38.92684918]
[1644339557851,6.25,111.26,111.18,38.92684918]
[1644339558251,0.25,111.26,111.18,38.92684918]
[1644339558850,30.43132986,111.27,111.18,38.92684918]
[1644339559152,19.739,111.27,111.18,38.95084918]
[1644339559352,6.25,111.27,111.18,52.43784918]
[1644339559551,0.25,111.27,111.18,54.39563662]
[1644339559753,6.0,111.27,111.18,52.43784918]
[1644339560151,6.25,111.27,111.18,52.43784918]
[1644339560355,0.25,111.27,111.18,52.43784918]
[1644339560557,6.0,111.27,111.18,52.43784918]
[1644339561252,10.495,111.28,111.18,52.43784918]
[1644339561452,4.495,111.28,111.18,52.43784918]
[1644339561655,6.0,111.28,111.18,113.78563662]
[1644339561855,4.495,111.31,111.18,113.78563662]
[1644339562065,6.0,111.31,111.18,113.78563662]
[1644339562265,28.9792,111.32,111.18,113.78563662]
[1644339562465,4.494,111.31,111.18,113.78563662]
[1644339562666,6.0,111.31,111.18,124.51563662]
[1644339563066,6.25,111.31,111.18,124.51563662]
[1644339563266,0.25,111.31,111.18,124.51563662]
[1644339563468,6.25,111.31,111.18,116.55784918]
[1644339563667,4.494,111.3,111.18,116.55784918]
[1644339563868,10.744,111.31,111.18,116.55784918]
[1644339564069,0.25,111.3,111.18,118.51563662]
[1644339564269,6.25,111.31,111.18,118.51563662]
[1644339565069,6.25,111.31,111.18,124.51563662]
[1644339565271,0.25,111.31,111.18,124.51563662]
[1644339565471,6.25,111.31,111.18,124.51563662]
[1644339565672,6.0,111.31,111.18,124.51563662]
[1644339565869,6.25,111.31,111.18,124.51563662]
[1644339566272,8.28867904,111.31,111.18,118.26563662]
[1644339566573,10.744,111.31,111.18,62.91784918]
[1644339566772,10.744,111.31,111.18,52.18784918]
[1644339566973,21.474,111.31,111.18,52.18784918]
[1644339567572,21.474,111.31,111.18,52.16384918]
[1644339567771,30.4634,111.31,111.19,0.024]
[1644339567975,16.98,111.31,111.22,13.4821]
[1644339568172,21.473,111.31,111.22,13.4821]
[1644339568373,21.473,111.31,111.22,13.7321]
[1644339568573,21.473,111.31,111.23,44.68279593]
[1644339568773,16.98,111.31,111.23,44.93279593]
[1644339568972,16.98,111.31,111.23,58.16329593]
[1644339569373,16.98,111.31,111.23,44.68279593]
[1644339569979,30.2134,111.31,111.23,44.93279593]
[1644339570582,30.2134,111.31,111.23,44.68279593]
[1644339570778,4.493,111.3,111.23,44.68279593]
[1644339571179,10.743,111.3,111.23,44.68279593]
[1644339571983,6.25,111.3,111.23,44.68279593]
[1644339572281,0.25,111.3,111.23,44.68279593]
[1644339572485,16.98,111.31,111.23,44.68279593]
[1644339572682,17.9775,111.3,111.23,44.68279593]
[1644339573084,24.2275,111.3,111.23,44.68279593]
[1644339574284,19.7345,111.3,111.23,44.68279593]
[1644339575185,4.493,111.29,111.23,44.68279593]
[1644339575385,4.493,111.29,111.21,0.024]
[1644339575587,6.25,111.29,111.21,0.024]
[1644339575786,6.25,111.29,111.2,12.9681]
[1644339576189,0.25,111.29,111.2,13.2181]
[1644339576388,0.25,111.29,111.21,50.93013248]
[1644339576389,6.25,111.29,111.21,50.93013248]
[1644339576790,6.25,111.29,111.21,49.51367748]
[1644339576989,6.25,111.29,111.19,13.5009]
[1644339576990,17.2693076,111.29,111.19,13.5009]
[1644339577191,4.494,111.28,111.19,13.5009]
[1644339577592,21.474,111.28,111.19,13.5009]
[1644339577989,12.37290668,111.27,111.19,51.31207925]
[1644339578193,4.495,111.26,111.13,2.55698203]
[1644339578390,4.495,111.26,111.14,13.4917]
[1644339578593,12.85275549,111.26,111.14,13.4917]
[1644339578791,12.83775549,111.25,111.1,15.93688203]
[1644339578991,51.9465,111.24,111.11,2.55645427]
[1644339579191,75.83709313,111.24,111.11,45.59462135]
[1644339579892,71.4388,111.24,111.11,45.59462135]
[1644339580091,23.9893,111.24,111.12,66.8842]
[1644339580293,6.0,111.24,111.12,76.43085254]
[1644339580492,6.0,111.24,111.13,1.95778744]
[1644339580691,4.497,111.23,111.12,6.0]
[1644339580893,4.497,111.24,111.13,40.02916489]
[1644339581092,7.04194554,111.23,111.13,40.02916489]
[1644339581292,4.497,111.22,111.13,40.02916489]
[1644339581491,7.04194554,111.23,111.13,40.02916489]
[1644339581691,15.47925427,111.21,111.13,40.02916489]
[1644339581890,17.9934,111.2,111.13,40.02916489]
[1644339582091,6.0,111.2,111.13,40.02916489]
[1644339582293,0.25,111.2,111.13,53.52406489]
[1644339582492,6.0,111.23,111.14,1.95778744]
[1644339582693,6.25,111.23,111.14,0.25]
[1644339582893,19.7425,111.23,111.13,40.02916489]
[1644339583093,3.79054823,111.22,111.13,40.02916489]
[1644339583292,4.04054823,111.22,111.13,40.02916489]
[1644339583496,4.497,111.21,111.13,40.02916489]
[1644339583692,0.25,111.21,111.13,40.02916489]
[1644339583893,6.0,111.22,111.13,41.98695233]
[1644339584093,80.245,111.25,111.13,41.98695233]
[1644339584294,75.748,111.25,111.13,41.98695233]
[1644339584699,89.2381,111.25,111.13,55.48175233]
[1644339584896,89.2381,111.25,111.13,55.73175233]
[1644339585297,94.04976399,111.25,111.13,55.73175233]
[1644339585797,89.2381,111.25,111.13,55.73175233]
[1644339586004,4.496,111.24,111.13,55.73175233]
[1644339586197,19.7411,111.24,111.13,55.73175233]
[1644339586398,19.7411,111.24,111.13,55.48175233]
[1644339586598,19.7411,111.24,111.13,53.52396489]
[1644339586801,19.4911,111.24,111.13,55.48662447]
[1644339586999,6.0,111.24,111.13,55.48662447]
[1644339587199,75.748,111.25,111.13,55.48662447]
[1644339587401,17.9856,111.27,111.13,108.87662447]
[1644339587701,4.496,111.28,111.13,124.67327701]
[1644339587900,4.496,111.28,111.13,135.40327701]
[1644339588101,75.1455,111.3,111.13,135.84327701]
[1644339588504,87.7281,111.32,111.13,135.40327701]
[1644339588699,87.7281,111.32,111.13,135.84327701]
[1644339588904,93.7281,111.32,111.13,135.84327701]
[1644339589100,14.67068539,111.31,111.13,135.84327701]
[1644339589302,4.495,111.3,111.13,135.84327701]
[1644339589707,24.23,111.3,111.13,135.84327701]
[1644339590108,6.0,111.3,111.13,148.30527614]
[1644339590309,6.0,111.31,111.22,13.4781]
[1644339590508,4.495,111.33,111.22,66.8681]
[1644339590806,6.0,111.33,111.23,46.71174297]
[1644339591010,4.493,111.32,111.23,46.71174297]
[1644339591206,6.0,111.34,111.23,46.96174297]
[1644339591408,4.492,111.35,111.23,46.96174297]
[1644339591610,10.742,111.35,111.23,46.96174297]
[1644339592407,10.742,111.35,111.23,100.35174297]
[1644339592609,19.7279,111.35,111.25,13.4782]
[1644339592908,4.492,111.34,111.25,13.7282]
[1644339593310,4.742,111.34,111.25,13.7282]
[1644339593512,4.742,111.34,111.26,44.99960562]
[1644339593711,0.25,111.34,111.26,58.47700562]
[1644339594109,2.80530227,111.34,111.26,58.47700562]
[1644339594311,4.492,111.33,111.26,44.99960562]
[1644339594511,13.47271402,111.32,111.22,44.9303]
[1644339594710,6.25,111.32,111.25,13.4791]
[1644339595830,6.25,111.32,111.26,48.32614783]
[1644339596229,0.25,111.32,111.25,13.4791]
[1644339596439,4.492,111.31,111.23,13.4804]
[1644339596634,10.492,111.31,111.19,10.73]
[1644339596833,15.12044048,111.3,111.18,0.024]
[1644339597033,4.494,111.29,111.16,1.98665958]
[1644339597233,4.744,111.29,111.17,40.69780864]
[1644339597436,6.25,111.29,111.18,0.024]
[1644339597634,19.88715304,111.29,111.18,0.024]
[1644339597934,6.25,111.29,111.18,0.024]
[1644339598136,13.4868,111.28,111.18,0.024]
[1644339598336,4.495,111.27,111.18,0.024]
[1644339598543,4.495,111.27,111.17,40.67380864]
[1644339598737,6.25,111.27,111.18,0.024]